fUSD/lending_fUSD_20260404
["ID","MTS","AMOUNT","RATE_DAILY","PERIOD"]
[419677395,1775279439740,-151.0,0.0001,2]
[419677396,1775279439749,-151.0,0.0001,2]
[419677397,1775279439758,-151.0,0.0001,2]
[419677398,1775279439768,-151.0,0.0001,2]
[419677399,1775279439777,-151.0,0.0001,2]
[419677400,1775279439786,-151.0,0.0001,2]
[419677401,1775279439795,-151.0,0.0001,2]
[419677402,1775279439804,-151.0,0.0001,2]
[419677403,1775279439813,-151.0,0.0001,2]
[419677404,1775279439822,-1386.78395259,0.0001,2]
[419677405,1775279439831,-151.0,0.0001,2]
[419677406,1775279439840,-1977.52447804,0.0001,2]
[419677407,1775279439849,-200.0,0.0001,2]
[419677408,1775279439858,-699.53995378,0.0001,2]
[419677409,1775279439867,-255.81122194,0.00010027,2]
[419677410,1775279439877,-172.45,0.0001006,2]
[419677411,1775279439886,-175.0,0.00010081,2]
[419677412,1775279439896,-305.0,0.00010101,2]
[419677413,1775279439905,-1725.0,0.00010106,2]
[419677414,1775279439914,-815.0,0.00010111,2]
[419677415,1775279439925,-1242.44020132,0.00010122,2]
[419677416,1775279439934,-9999.99,0.00010122,2]
[419677417,1775279439943,-1570.92,0.00010122,2]
[419677418,1775279439953,-1032.29,0.00010122,2]
[419677419,1775279439963,-9999.99,0.00010122,2]
[419677420,1775279439972,-999.99,0.00010122,2]
[419677421,1775279439981,-9999.99,0.00010122,2]
[419677422,1775279439990,-15253.88,0.00010122,2]
[419677423,1775279439999,-150.99,0.00010122,2]
[419677424,1775279440009,-1569.88,0.00010122,2]
[419677425,1775279440018,-433.0,0.00010126,2]
[419677426,1775279440027,-1703.0,0.00010131,2]
[419677427,1775279440036,-500.0,0.00010134,2]
[419677428,1775279440046,-500.0,0.00010134,2]
[419677429,1775279440055,-500.0,0.00010134,2]
[419677430,1775279440064,-500.0,0.00010134,2]
[419677431,1775279440074,-500.0,0.00010134,2]
[419677432,1775279440083,-500.0,0.00010134,2]
[419677433,1775279440092,-500.0,0.00010134,2]
[419677434,1775279440102,-500.0,0.00010134,2]
[419677435,1775279440110,-326.47315673,0.00010134,2]
[419677436,1775279440119,-166.66,0.00010264,2]
[419677437,1775279440128,-500.0,0.00010274,2]
[419677438,1775279440138,-363.0,0.00010314,2]
[419677439,1775279440147,-151.0,0.0001042,2]
[419677440,1775279440156,-151.0,0.00010423,2]
[419677441,1775279440166,-151.0,0.00010424,2]
[419677442,1775279440175,-151.0,0.00010425,2]
[419677443,1775279440184,-160.72,0.00010426,2]
[419677444,1775279440193,-1200.0,0.00010511,2]
[419677445,1775279440203,-255.0,0.00010511,2]
[419677446,1775279440212,-1680.0,0.00010511,2]
[419677447,1775279440221,-264.0,0.00010511,2]
[419677448,1775279440231,-420.0,0.00010511,2]
[419677449,1775279440240,-5000.0,0.00010512,2]
[419677450,1775279440249,-193.0,0.00010512,2]
[419677451,1775279440258,-150.0363523,0.00010512,2]
[419677452,1775279440268,-3338.52099268,0.00010512,2]
[419677453,1775279440277,-250.0,0.00010512,2]
[419677454,1775279440287,-1500.0,0.00010531,2]
[419677455,1775279440297,-2000.0,0.00010537,2]
[419677456,1775279440306,-500.0,0.00010548,2]
[419677457,1775279440315,-201.9876343,0.00010548,2]
[419677458,1775279440324,-994.42051783,0.00010548,2]
[419677459,1775279440334,-172.45,0.0001059,2]
[419677460,1775279440343,-166.66,0.00010602,2]
[419677461,1775279440352,-250.0,0.00010622,2]
[419677462,1775279440362,-270.21654219,0.000107,2]
[419677463,1775279440370,-322781.39599475,0.000107,2]
[419677464,1775279440380,-181.9,0.0001073,2]
[419677465,1775279440390,-181.9,0.0001073,2]
[419677466,1775279440399,-181.9,0.0001073,2]
[419677467,1775279440409,-181.9,0.0001073,2]
[419677468,1775279440418,-181.9,0.0001073,2]
[419677469,1775279440428,-181.9,0.0001073,2]
[419677470,1775279440438,-181.9,0.0001073,2]
[419677472,1775279440447,-181.9,0.0001073,2]
[419677474,1775279440457,-182.0,0.0001073,2]
[419677476,1775279440466,-500.0,0.00010822,2]
[419677478,1775279440476,-166.66,0.00010941,2]
[419677479,1775279440485,-502.00566011,0.00010959,2]
[419677480,1775279440494,-699.53995378,0.00011089,2]
[419677483,1775279440504,-500.0,0.00011096,2]
[419677486,1775279440513,-22655.25635305,0.00011099,2]
[419677488,1775279440522,-172.45,0.00011119,2]
[419677490,1775279440533,-22655.256353,0.00011219,2]
[419677492,1775279440542,-166.66,0.0001128,2]
[419677494,1775279440552,-500.0,0.0001137,2]
[419677496,1775279440561,-174.78,0.0001149,2]
[419677498,1775279440570,-2592.2,0.00011507,2]
[419677499,1775279440579,-433.0,0.00011562,2]
[419677500,1775279440589,-2351.0,0.00011562,2]
[419677501,1775279440598,-166.66,0.00011619,2]
[419677502,1775279440608,-500.0,0.00011644,2]
[419677503,1775279440618,-172.45,0.00011648,2]
[419677504,1775279440628,-2000.0,0.00011708,2]
[419677505,1775279440637,-500.0,0.00011918,2]
[419677506,1775279440646,-166.66,0.00011958,2]
[419677507,1775279440656,-172.45,0.00012178,2]
[419677508,1775279440666,-256.89227692,0.00012192,2]
[419677509,1775279440675,-167.61,0.00012581,2]
[419677510,1775279440684,-250.0,0.00012627,2]
[419677511,1775279440694,-172.45,0.00012707,2]
[419677512,1775279440703,-736.0,0.00012718,2]
[419677513,1775279440712,-3292.0,0.00012718,2]
[419677514,1775279440721,-22655.256353,0.00012782,2]
[419677515,1775279440731,-2000.0,0.00012879,2]
[419677516,1775279440740,-1100.0,0.000129,4]
[419677517,1775279440749,-572.64295126,0.00012987,2]
[419677518,1775279440758,-169.41108964,0.00012987,2]
[419677519,1775279440767,-250.0,0.00013,2]
[419677520,1775279440777,-524.0,0.00013111,2]
[419677521,1775279440787,-1055.12163885,0.00013132,2]
[419677522,1775279440796,-1035.03088094,0.00013132,2]
[419677523,1775279440805,-1101.13879004,0.00013132,2]
[419677524,1775279440814,-1090.4872977,0.00013132,2]
[419677525,1775279440823,-172.45,0.00013237,2]
[419677526,1775279440833,-1133.77455598,0.0001326,2]
[419677527,1775279440842,-413.33938026,0.0001326,2]
[419677528,1775279440852,-401.32783824,0.0001326,2]
[419677529,1775279440861,-154.7,0.000134,30]
[419677530,1775279440870,-3240.0,0.00013425,2]
[419677531,1775279440879,-396.622186,0.00013426,2]
[419677532,1775279440888,-500.0,0.00013698,2]
[419677533,1775279440897,-500.0,0.00013698,2]
[419677534,1775279440906,-500.0,0.00013698,2]
[419677535,1775279440915,-500.0,0.00013698,2]
[419677536,1775279440924,-500.0,0.00013698,2]
[419677537,1775279440933,-500.0,0.00013698,2]
[419677538,1775279440942,-375.0,0.00013698,2]
[419677539,1775279440951,-500.0,0.00013698,2]
[419677540,1775279440960,-500.0,0.00013698,2]
[419677541,1775279440968,-500.0,0.00013698,2]
[419677542,1775279440978,-500.0,0.00013698,2]
[419677543,1775279440987,-500.0,0.00013698,2]
[419677544,1775279440996,-500.0,0.00013698,2]
[419677545,1775279441005,-500.0,0.00013698,2]
[419677546,1775279441015,-160.12835999,0.00013698,2]
[419677547,1775279441024,-368.37111171,0.00013698,2]
[419677548,1775279441034,-500.0,0.00013698,2]
[419677549,1775279441044,-500.0,0.00013698,2]
[419677550,1775279441053,-500.0,0.00013698,2]
[419677551,1775279441062,-500.0,0.00013698,2]
[419677552,1775279441071,-546.99599556,0.00013698,2]
[419677553,1775279441080,-500.0,0.00013698,2]
[419677554,1775279441089,-500.0,0.00013698,2]
[419677555,1775279441098,-500.0,0.00013698,2]
[419677556,1775279441107,-500.0,0.00013698,2]
[419677557,1775279441117,-500.0,0.00013698,2]
[419677558,1775279441126,-500.0,0.00013698,2]
[419677559,1775279441135,-500.0,0.00013698,2]
[419677560,1775279441145,-500.0,0.00013698,2]
[419677561,1775279441157,-500.0,0.00013698,2]
[419677562,1775279441167,-500.0,0.00013698,2]
[419677563,1775279441177,-500.0,0.00013698,2]
[419677564,1775279441188,-344.77648348,0.00013698,2]
[419677565,1775279441197,-500.0,0.00013698,2]
[419677566,1775279441207,-500.0,0.00013698,2]
[419677567,1775279441219,-500.0,0.00013698,2]
[419677568,1775279441229,-500.0,0.00013698,2]
[419677569,1775279441239,-500.0,0.00013698,2]
[419677570,1775279441248,-500.0,0.00013698,2]
[419677571,1775279441257,-500.0,0.00013698,2]
[419677572,1775279441266,-500.0,0.00013698,2]
[419677573,1775279441276,-500.0,0.00013698,2]
[419677574,1775279441285,-500.0,0.00013698,2]
[419677575,1775279441295,-500.0,0.00013698,2]
[419677576,1775279441304,-500.0,0.00013698,2]
[419677577,1775279441314,-500.0,0.00013698,2]
[419677578,1775279441325,-500.0,0.00013698,2]
[419677579,1775279441335,-500.0,0.00013698,2]
[419677580,1775279441345,-500.0,0.00013698,2]
[419677581,1775279441356,-500.0,0.00013698,2]
[419677582,1775279441367,-500.0,0.00013698,2]
[419677583,1775279441377,-500.0,0.00013698,2]
[419677584,1775279441387,-500.0,0.00013698,2]
[419677585,1775279441396,-500.0,0.00013698,2]
[419677586,1775279441406,-500.0,0.00013698,2]
[419677587,1775279441416,-500.0,0.00013698,2]
[419677588,1775279441426,-500.0,0.00013698,2]
[419677589,1775279441436,-500.0,0.00013698,2]
[419677590,1775279441446,-500.0,0.00013698,2]
[419677591,1775279441456,-500.0,0.00013698,2]
[419677592,1775279441466,-500.0,0.00013698,2]
[419677593,1775279441476,-500.0,0.00013698,2]
[419677594,1775279441486,-500.0,0.00013698,2]
[419677595,1775279441496,-500.0,0.00013698,2]
[419677597,1775279441506,-500.0,0.00013698,2]
[419677599,1775279441516,-500.0,0.00013698,2]
[419677601,1775279441525,-500.0,0.00013698,2]
[419677603,1775279441534,-500.0,0.00013698,2]
[419677605,1775279441543,-500.0,0.00013698,2]
[419677607,1775279441553,-500.0,0.00013698,2]
[419677609,1775279441563,-500.0,0.00013698,2]
[419677611,1775279441572,-500.0,0.00013698,2]
[419677613,1775279441582,-500.0,0.00013698,2]
[419677615,1775279441591,-500.0,0.00013698,2]
[419677617,1775279441600,-500.0,0.00013698,2]
[419677619,1775279441609,-500.0,0.00013698,2]
[419677621,1775279441619,-500.0,0.00013698,2]
[419677623,1775279441628,-500.0,0.00013698,2]
[419677625,1775279441637,-500.0,0.00013698,2]
[419677627,1775279441647,-500.0,0.00013698,2]
[419677629,1775279441656,-500.0,0.00013698,2]
[419677631,1775279441666,-500.0,0.00013698,2]
[419677633,1775279441675,-500.0,0.00013698,2]
[419677635,1775279441684,-500.0,0.00013698,2]
[419677637,1775279441695,-500.0,0.00013698,2]
[419677639,1775279441704,-500.0,0.00013698,2]
[419677641,1775279441713,-500.0,0.00013698,2]
[419677643,1775279441722,-500.0,0.00013698,2]
[419677645,1775279441732,-500.0,0.00013698,2]
[419677647,1775279441741,-500.0,0.00013698,2]
[419677649,1775279441751,-500.0,0.00013698,2]
[419677651,1775279441760,-500.0,0.00013698,2]
[419677653,1775279441770,-500.0,0.00013698,2]
[419677655,1775279441779,-500.0,0.00013698,2]
[419677657,1775279441788,-500.0,0.00013698,2]
[419677659,1775279441798,-514.47518034,0.00013698,2]
[419677661,1775279441807,-500.0,0.00013698,2]
[419677663,1775279441816,-500.0,0.00013698,2]
[419677665,1775279441826,-500.0,0.00013698,2]
[419677667,1775279441835,-500.0,0.00013698,2]
[419677671,1775279441845,-500.0,0.00013698,2]
[419677674,1775279441855,-500.0,0.00013698,2]
[419677677,1775279441865,-500.0,0.00013698,2]
[419677680,1775279441875,-500.0,0.00013698,2]
[419677683,1775279441884,-500.0,0.00013698,2]
[419677686,1775279441894,-500.0,0.00013698,2]
[419677688,1775279441905,-500.0,0.00013698,2]
[419677690,1775279441915,-500.0,0.00013698,2]
[419677693,1775279441926,-500.0,0.00013698,2]
[419677695,1775279441936,-500.0,0.00013698,2]
[419677697,1775279441946,-315.75,0.00013698,2]
[419677699,1775279441955,-781.57,0.00013698,2]
[419677701,1775279441967,-781.57,0.00013698,2]
[419677703,1775279441976,-781.57,0.00013698,2]
[419677705,1775279441985,-781.57,0.00013698,2]
[419677707,1775279441994,-781.57,0.00013698,2]
[419677709,1775279442003,-781.57,0.00013698,2]
[419677711,1775279442012,-781.57,0.00013698,2]
[419677713,1775279442022,-781.57,0.00013698,2]
[419677715,1775279442033,-781.57,0.00013698,2]
[419677717,1775279442043,-781.57,0.00013698,2]
[419677720,1775279442055,-781.57,0.00013698,2]
[419677722,1775279442064,-781.57,0.00013698,2]
[419677724,1775279442074,-781.57,0.00013698,2]
[419677726,1775279442085,-781.57,0.00013698,2]
[419677728,1775279442095,-781.57,0.00013698,2]
[419677729,1775279442106,-781.57,0.00013698,2]
[419677730,1775279442117,-500.0,0.00013698,2]
[419677731,1775279442127,-500.0,0.00013698,2]
[419677732,1775279442136,-500.0,0.00013698,2]
[419677733,1775279442146,-500.0,0.00013698,2]
[419677734,1775279442156,-500.0,0.00013698,2]
[419677735,1775279442166,-500.0,0.00013698,2]
[419677736,1775279442175,-500.0,0.00013698,2]
[419677737,1775279442184,-171.3934212,0.00013698,2]
[419677738,1775279442193,-500.0,0.00013698,2]
[419677739,1775279442203,-500.0,0.00013698,2]
[419677740,1775279442212,-500.0,0.00013698,2]
[419677741,1775279442221,-500.0,0.00013698,2]
[419677742,1775279442231,-500.0,0.00013698,2]
[419677743,1775279442240,-500.0,0.00013698,2]
[419677744,1775279442249,-500.0,0.00013698,2]
[419677745,1775279442258,-500.0,0.00013698,2]
[419677746,1775279442267,-500.0,0.00013698,2]
[419677747,1775279442277,-500.0,0.00013698,2]
[419677748,1775279442286,-153.3776321,0.00013698,2]
[419677749,1775279442295,-500.0,0.00013698,2]
[419677750,1775279442304,-500.0,0.00013698,2]
[419677751,1775279442314,-500.0,0.00013698,2]
[419677752,1775279442323,-500.0,0.00013698,2]
[419677753,1775279442332,-500.0,0.00013698,2]
[419677754,1775279442341,-500.0,0.00013698,2]
[419677755,1775279442351,-500.0,0.00013698,2]
[419677756,1775279442360,-193.61296005,0.00013698,2]
[419677757,1775279442370,-502.02201151,0.00013698,2]
[419677758,1775279442379,-500.0,0.00013698,2]
[419677759,1775279442388,-500.0,0.00013698,2]
[419677760,1775279442398,-500.0,0.00013698,2]
[419677761,1775279442407,-500.0,0.00013698,2]
[419677762,1775279442416,-500.0,0.00013698,2]
[419677763,1775279442425,-500.0,0.00013698,2]
[419677764,1775279442435,-500.0,0.00013698,2]
[419677765,1775279442444,-500.0,0.00013698,2]
[419677766,1775279442453,-598.90354809,0.00013698,2]
[419677767,1775279442462,-500.0,0.00013698,2]
[419677768,1775279442471,-507.01970036,0.00013698,2]
[419677769,1775279442480,-500.0,0.00013698,2]
[419677770,1775279442490,-500.0,0.00013698,2]
[419677771,1775279442499,-500.0,0.00013698,2]
[419677772,1775279442508,-500.0,0.00013698,2]
[419677773,1775279442518,-500.0,0.00013698,2]
[419677774,1775279442528,-500.0,0.00013698,2]
[419677775,1775279442537,-500.0,0.00013698,2]
[419677776,1775279442546,-500.0,0.00013698,2]
[419677777,1775279442556,-500.0,0.00013698,2]
[419677778,1775279442566,-500.0,0.00013698,2]
[419677779,1775279442575,-636.85289052,0.00013698,2]
[419677780,1775279442585,-500.0,0.00013698,2]
[419677781,1775279442594,-500.0,0.00013698,2]
[419677782,1775279442603,-500.0,0.00013698,2]
[419677783,1775279442612,-500.0,0.00013698,2]
[419677784,1775279442621,-500.0,0.00013698,2]
[419677785,1775279442631,-500.0,0.00013698,2]
[419677786,1775279442640,-500.0,0.00013698,2]
[419677787,1775279442649,-500.0,0.00013698,2]
[419677788,1775279442658,-500.0,0.00013698,2]
[419677789,1775279442668,-500.0,0.00013698,2]
[419677790,1775279442677,-510.0722722,0.00013698,2]
[419677791,1775279442686,-512.39809745,0.00013698,2]
[419677792,1775279442695,-500.0,0.00013698,2]
[419677793,1775279442705,-500.0,0.00013698,2]
[419677794,1775279442904,-500.0,0.00013698,2]
[419677795,1775279442913,-500.0,0.00013698,2]
[419677796,1775279442922,-500.0,0.00013698,2]
[419677797,1775279442931,-500.0,0.00013698,2]
[419677798,1775279442940,-500.0,0.00013698,2]
[419677799,1775279442950,-500.0,0.00013698,2]
[419677800,1775279442959,-500.0,0.00013698,2]
[419677802,1775279442968,-500.0,0.00013698,2]
[419677803,1775279442978,-500.0,0.00013698,2]
[419677804,1775279442987,-500.0,0.00013698,2]
[419677805,1775279442997,-500.0,0.00013698,2]
[419677806,1775279443006,-500.0,0.00013698,2]
[419677807,1775279443016,-500.0,0.00013698,2]
[419677809,1775279443026,-500.0,0.00013698,2]
[419677810,1775279443035,-500.0,0.00013698,2]
[419677811,1775279443045,-322.40547967,0.00013698,2]
[419677812,1775279443054,-150.0,0.00013699,2]
[419677813,1775279443064,-150.0,0.00013699,2]
[419677814,1775279443074,-150.0,0.00013699,2]
[419677815,1775279443084,-150.0,0.00013699,2]
[419677816,1775279443094,-150.0,0.00013699,2]
[419677817,1775279443104,-172.45,0.00013766,2]
[419677818,1775279443114,-150.0,0.00013973,2]
[419677819,1775279443124,-150.0,0.00013973,2]
[419677821,1775279443134,-150.0,0.00013973,2]
[419677824,1775279443144,-150.0,0.00013973,2]
[419677825,1775279443154,-785.0,0.00013989,2]
[419677826,1775279443163,-4609.0,0.0001399,2]
[419677827,1775279443174,-473.51720145,0.00014006,2]
[419677828,1775279443184,-2000.0,0.0001405,2]
[419677829,1775279443193,-351.335677,0.0001409,2]
[419677830,1775279443202,-150.0,0.00014247,2]
[419677831,1775279443212,-150.0,0.00014247,2]
[419677832,1775279443222,-150.0,0.00014247,2]
[419677833,1775279443231,-150.0,0.00014247,2]
[419677834,1775279443241,-172.45,0.00014296,2]
[419677835,1775279443251,-22655.256353,0.00014344,2]
[419677836,1775279443260,-500.0,0.00014705,2]
[419677837,1775279443269,-300.0,0.00015,2]
[419677838,1775279443279,-3044.58224996,0.00015,2]
[419677839,1775279443289,-359.10439347,0.0001503,2]
[419677840,1775279443299,-1517.64,0.000153,2]
[419677841,1775279443309,-1530.0,0.00015389,2]
[419677842,1775279443318,-512.53794019,0.000154,2]
[419677843,1775279443327,-1231.35459603,0.000155,2]
[419677844,1775279443336,-500.0,0.00015517,2]
[419677845,1775279443346,-500.0,0.00015517,2]
[419677846,1775279443356,-500.0,0.00015517,2]
[419677847,1775279443365,-500.0,0.00015517,2]
[419677848,1775279443377,-500.0,0.00015517,2]
[419677849,1775279443387,-250.0,0.00015517,2]
[419677850,1775279443396,-500.0,0.00015517,2]
[419677851,1775279443407,-250.0,0.00015517,2]
[419677852,1775279443417,-500.0,0.00015517,2]
[419677853,1775279443426,-250.0,0.00015517,2]
[419677854,1775279443437,-500.0,0.00015517,2]
[419677855,1775279443446,-250.0,0.00015517,2]
[419677856,1775279443456,-500.0,0.00015517,2]
[419677857,1775279443466,-250.0,0.00015517,2]
[419677858,1775279443476,-500.0,0.00015517,2]
[419677859,1775279443487,-250.0,0.00015517,2]
[419677860,1775279443497,-500.0,0.00015517,2]
[419677861,1775279443507,-250.0,0.00015517,2]
[419677862,1775279443517,-500.0,0.00015517,2]
[419677863,1775279443527,-250.0,0.00015517,2]
[419677864,1775279443536,-250.0,0.00015517,2]
[419677865,1775279443546,-250.0,0.00015517,2]
[419677866,1775279443555,-250.0,0.00015517,2]
[419677867,1775279443564,-500.0,0.00015517,2]
[419677868,1775279443574,-500.0,0.00015517,2]
[419677869,1775279443583,-500.0,0.00015517,2]
[419677870,1775279443593,-151.0,0.00015517,2]
[419677871,1775279443602,-500.0,0.00015517,2]
[419677872,1775279443612,-500.0,0.00015517,2]
[419677873,1775279443622,-174.61919141,0.00015517,2]
[419677874,1775279443631,-500.0,0.00015517,2]
[419677875,1775279443641,-500.0,0.00015517,2]
[419677876,1775279443651,-500.0,0.00015517,2]
[419677877,1775279443660,-500.0,0.00015517,2]
[419677878,1775279443670,-500.0,0.00015517,2]
[419677879,1775279443681,-500.0,0.00015517,2]
[419677880,1775279443690,-170.0,0.00015517,2]
[419677881,1775279443700,-170.0,0.00015517,2]
[419677882,1775279443711,-170.0,0.00015517,2]
[419677883,1775279443721,-304.16643308,0.00015517,2]
[419677884,1775279443731,-500.0,0.00015572,2]
[419677885,1775279443741,-151.0,0.00015572,2]
[419677886,1775279443751,-154.0,0.000156,2]
[419677887,1775279443761,-215.40969197,0.00015601,2]
[419677888,1775279443770,-3010.0,0.0001561,2]
[419677889,1775279443779,-500.0,0.00015627,2]
[419677890,1775279443790,-151.0,0.00015627,2]
[419677891,1775279443800,-855.35507685,0.00015634,2]
[419677892,1775279443810,-500.0,0.00015682,2]
[419677894,1775279443824,-151.0,0.00015682,2]
[419677896,1775279443835,-2000.0,0.00015701,2]
[419677898,1775279443845,-3010.0,0.00015707,2]
[419677900,1775279443856,-194609.24030404,0.0001572,2]
[419677902,1775279443867,-3010.0,0.00015736,2]
[419677904,1775279443880,-500.0,0.00015737,2]
[419677906,1775279443890,-151.0,0.00015737,2]
[419677908,1775279443900,-483.76,0.00015779,2]
[419677910,1775279443910,-483.76,0.00015779,2]
[419677912,1775279443920,-483.76,0.00015779,2]
[419677914,1775279443931,-483.76,0.00015779,2]
[419677916,1775279443941,-483.74,0.00015779,2]
[419677918,1775279443951,-500.0,0.00015792,2]
[419677920,1775279443961,-151.0,0.00015792,2]
[419677922,1775279443971,-2000.0,0.00015801,2]
[419677924,1775279443982,-2259.03257639,0.00015807,2]
[419677926,1775279443992,-3010.0,0.00015838,2]
[419677928,1775279444003,-500.0,0.00015847,2]
[419677930,1775279444013,-151.0,0.00015847,2]
[419677932,1775279444022,-500.0,0.0001589,2]
[419677934,1775279444032,-500.0,0.0001589,2]
[419677936,1775279444041,-500.0,0.0001589,2]
[419677938,1775279444051,-500.0,0.0001589,2]
[419677940,1775279444060,-500.0,0.0001589,2]
[419677942,1775279444070,-500.0,0.0001589,2]
[419677944,1775279444079,-500.0,0.0001589,2]
[419677946,1775279444088,-500.0,0.0001589,2]
[419677948,1775279444097,-500.0,0.0001589,2]
[419677950,1775279444107,-500.0,0.0001589,2]
[419677952,1775279444116,-500.0,0.0001589,2]
[419677954,1775279444125,-500.0,0.0001589,2]
[419677956,1775279444134,-500.0,0.0001589,2]
[419677958,1775279444143,-500.0,0.0001589,2]
[419677960,1775279444155,-500.0,0.0001589,2]
[419677962,1775279444166,-500.0,0.0001589,2]
[419677964,1775279444175,-154.0,0.000159,2]
[419677966,1775279444186,-150.0,0.000159,2]
[419677968,1775279444196,-150.0,0.000159,2]
[419677970,1775279444205,-200.0,0.000159,5]
[419677972,1775279444215,-150.0,0.000159,2]
[419677975,1775279444225,-15013.58057005,0.000159,2]
[419677977,1775279444236,-2000.0,0.00015901,2]
[419677979,1775279444246,-500.0,0.00015902,2]
[419677981,1775279444255,-151.0,0.00015902,2]
[419677982,1775279444264,-22655.256353,0.00015907,2]
[419677984,1775279444274,-3010.0,0.0001592,2]
[419677986,1775279444284,-3010.0,0.00015927,2]
[419677987,1775279444293,-3010.0,0.00015954,2]
[419677988,1775279444302,-500.0,0.00015957,2]
[419677989,1775279444312,-151.0,0.00015957,2]
[419677990,1775279444321,-500.67291823,0.00015973,2]
[419677991,1775279444331,-500.92096855,0.00015973,2]
[419677992,1775279444340,-500.0,0.00015973,2]
[419677993,1775279444349,-419.18220394,0.00015973,2]
[419677994,1775279444358,-500.0,0.00015973,2]
[419677995,1775279444367,-500.0,0.00015973,2]
[419677996,1775279444377,-500.0,0.00015973,2]
[419677997,1775279444386,-500.0,0.00015973,2]
[419677998,1775279444396,-500.0,0.00015973,2]
[419677999,1775279444406,-500.0,0.00015973,2]
[419678000,1775279444415,-699.53995378,0.0001599,2]
[419678001,1775279444424,-666.0,0.00015999,2]
[419678002,1775279444434,-666.0,0.00015999,2]
[419678003,1775279444443,-2601848.23564013,0.00016,2]
[419678004,1775279444453,-417.62547282,0.00016,2]
[419678005,1775279444462,-4352311.4636237,0.00016,2]
[419678006,1775279444955,-185.48,0.00010959,2]
[419678007,1775279444964,-6635.13970756,0.00016,2]
[419678008,1775279445116,-2534.8011915,0.00016,2]
[419678009,1775279445134,-1643.93003498,0.00016,2]
[419678010,1775279445147,-867.21384687,0.00016,2]
[419678011,1775279445158,-2365.275,0.00016,2]
[419678012,1775279445169,-2511.0,0.00016,2]
[419678013,1775279445180,-1844.09,0.00016,2]
[419678017,1775279446105,-976.64915807,0.00013698,2]
[419678018,1775279446115,-197.03550207,0.00013698,2]
[419678019,1775279446124,-3115.15013326,0.00016,2]
[419678020,1775279446192,-674.76647146,0.00016,2]
[419678021,1775279446604,-139589.93986662,0.00016,2]
[419678027,1775279447053,-128.77418756,0.00016,2]
[419678062,1775279468376,10000.01,9.456e-05,2]
[419678063,1775279468402,10000.01,9.456e-05,2]
[419678064,1775279468428,10000.01,9.456e-05,2]
[419678065,1775279468454,10000.01,9.456e-05,2]
[419678066,1775279468635,10000.01,9.456e-05,2]
[419678067,1775279468663,10000.01,9.456e-05,2]
[419678068,1775279468689,10000.01,9.456e-05,2]
[419678069,1775279468716,10000.01,9.456e-05,2]
[419678070,1775279468742,10000.01,9.456e-05,2]
[419678071,1775279478408,-286.0,9.456e-05,2]
[419678072,1775279478496,-8818.15152104,9.456e-05,2]
[419678073,1775279478529,-10000.01,9.456e-05,2]